Workbook

Sheet Kalkulator
C9: ER_Kalkulator_01_05
C10: Klient indywidualny
C12: Rodzaj instalacji | D12: PV + Inwerter hybrydowy + Magazyn Energii
C14: Konstrukcja montażowa | D14: Dach skośny - blachodachówka,papa, gont pion
C15: Ilość faz | D15: 1
E16: ILOŚĆ | F16: MOC | G16: Pojemność
C17: Moduły PV | D17: Trina Vertex TSM-450 | E17: 3,6 - 8 | F17: =Obliczenia!$E$1 -> 3,6 kwp | G17: -
C18: Magazyn | D18: Deye PRO-B 5,12 kWh | F18: =Obliczenia!$G$24 -> 2,5 kw | G18: =Obliczenia!$E$24 -> 5,12 kwp
C19: Inwerter | D19: Deye LOW VOLTAGE SUN-3.6K-SG03LP1-EU (1-faz) | E19: =Informator!$D$2 -> 
C20: Proponowany | D20: =Obliczenia!$D$2 -> Deye LOW VOLTAGE SUN-3.6K-SG03LP1-EU (1-faz)
C21: Wyłącznik Ppoż | D21: NIE
C22: Optymalizatory | D22: 0 | E22: szt.
C23: Rozszerzenie gwarancji na falownik do 10 lat | D23: NIE
C24: Przekop | D24: 0 | E24: m.
C25: Dodatkowy kabel | D25: 0 | E25: m.
C26: Moduł bilansowania energii Eniga | D26: NIE
C27: UPS | D27: NIE
F28: MAX. Dotacja MÓJ PRĄD | G28: =Informator!$D$6 -> 22360
C29: Eco Wakacje | D29: NIE | F29: Ulga Termomodernizacyjna
C30: Podnośnik | D30: NIE | F30: 0.12 | G30: =Informator!$D$8 -> 2911.73568
C31: Integrator do istniejącej instalacji PV | D31: NIE
C32: Pakiet | D32: STANDARD PLUS
C33: Cena netto | D33: =Informator!$D$10 -> 43170.8 | F33: Ilość lat kredytu: | G33: Wpłata własna:
C34: Cena brutto | D34: =Informator!$D$11 -> 46624.464 | F34: 4 | G34: 0
C35: Cena po dotacjach | D35: =Informator!$D$12 -> 21352.72832
C37: MARŻA DODATKOWA | D37: 0

Sheet Raty kredytowe
C9: Inbank - kredyt do 10 lat | F9: Santander - kredyt do 10 lat
C10: Ilość lat | D10: =Kredyt!$J$2 -> 4 | F10: Ilość lat | G10: =Kredyt!$J$3 -> 4
C11: Cena instalacji brutto | D11: =Kredyt!$E$2 -> 46624.464 | F11: Cena instalacji brutto | G11: =Kredyt!$E$3 -> 46624.464
C12: Wkład własny | D12: =Kredyt!$F$2 -> 0 | F12: Wkład własny | G12: =Kredyt!$F$3 -> 0
C13: Kwota kredytu | D13: =Kredyt!$G$2 -> 46624.464 | F13: Kwota kredytu | G13: =Kredyt!$G$3 -> 46624.464
C14: Maksymalna kwota kredytu | D14: 100000 | F14: Maksymalna kwota kredytu | G14: 80000
C15: RATA MIESIĘCZNA | D15: =Kredyt!$M$2 -> 1251.089784 | F15: RATA MIESIĘCZNA | G15: =Kredyt!$M$3 -> 1251.089784

Sheet Informator (hidden)
D2: =IF(Kalkulator!$D$12=Baza!$A$4,"",IF(ISNA(MATCH(Kalkulator!$D$19,_xlfn.ANCHORARRAY(Inwerter!$H$2),0)),"<- Wybierz poprawny inwerter !","")) -> 
D4: =IF(AND(Kalkulator!$D$12=Baza!$A$4,Kalkulator!$D$15<>Inwerter!$K$14),"<- Zmień ilość faz !",IF(Kalkulator!$D$12=Baza!$A$4,"",IF(AND(OR(Kalkulator!$E$17>=Baza!$I$11,Kalkulator!$E$17=Baza!$I$9),Kalkulator!$D$15<>3),"<- Zmień ilość faz !",""))) -> 
D6: =IF(Informator!$D$11="","",IF(Kalkulator!$D$12=Baza!$A$3,'Mój Prąd'!$B$6,"DOTACJA NIE NALEŻY SIĘ")) -> 22360
D8: =IF(Informator!$D$11="","",IF(ISTEXT(Informator!$D$6),Informator!$D$11*Kalkulator!$F$30,(Informator!$D$11-Informator!$D$6)*Kalkulator!$F$30)) -> 2911.73568
D10: =IF(OR(Informator!$D$2="<- Wybierz poprawny inwerter !",Informator!$D$4="<- Zmień ilość faz !"),"",Obliczenia!$C$2) -> 43170.8
D11: =IF($D$10="","",IF(Obliczenia!$I$3<>"",Obliczenia!$I$3,Obliczenia!$I$4)) -> 46624.464
D12: =IF($D$11="","",IF(ISTEXT(Informator!$D$6),$D$11-Informator!$D$8,($D$11-Informator!$D$6-Informator!$D$8))) -> 21352.72832

Sheet Kredyt (hidden)
E1: Kwota instalacji | F1: Wkład włany | G1: Kwota kredytu | H1: RRSO | I1: RRSO/m-c | J1: Okres kredytowania | K1: M-c | L1: Rata | M1: Warunki
A2: 2 | D2: Inbank | E2: =Informator!$D$11 -> 46624.464 | F2: =Kalkulator!$G$34 -> 0 | G2: =E2-F2 -> 46624.464 | H2: 0.1284 | I2: =H2/12 -> 0.0107 | J2: =Kalkulator!$F$34 -> 4 | K2: =J2*12 -> 48 | L2: =(G2/K2)+G2*0.006 -> 1251.089784 | M2: =IFERROR(IF(J2=VLOOKUP(J2,A2:A11,1,0),L2,0),"-") -> 1251.089784
A3: 3 | D3: Santander | E3: =Informator!$D$11 -> 46624.464 | F3: =Kalkulator!$G$34 -> 0 | G3: =E3-F3 -> 46624.464 | H3: 0.1284 | I3: =H3/12 -> 0.0107 | J3: =Kalkulator!$F$34 -> 4 | K3: =IFERROR(J3*12,120) -> 48 | L3: =(G3/K3)+G3*0.006 -> 1251.089784 | M3: =IFERROR(IF(J3=VLOOKUP(J3,A2:A7,1,0),L3,0),"-") -> 1251.089784
A4: 4
A5: 5
A6: 6
A7: 83 miesiące
A8: 7
A9: 8
A10: 9
A11: 10

Sheet Baza (hidden)
A1: Rodzaj kostrukcji | B1: Marża | D1: Panele | G1: Konstrukcja | J1: Falownik | O1: Falownik | U1: Magazyn energii | X1: Elektryka | AA1: Drobnica elektryczna | AD1: Prace Gruntowe | AG1: Montaż | AJ1: Koszty dodatkowe
A2: PV Mikro | B2: STANDARD PLUS | C2: 10000 | D2: Nazwa | E2: moc [kWp] | F2: Cena netto/moduł [zł] | G2: typ konstrukcji | H2: cena/moduł | J2: Falownik | K2: moc | L2: min moc instalacji | M2: max moc paneli | N2: cena | O2: Falownik | P2: moc | Q2: min moc instalacji | R2: max moc paneli | S2: cena | T2: falownik | U2: nazwa | V2: pojemność [kWh] | W2: cena | X2: min moc | Y2: max moc | Z2: cena | AA2: min | AB2: max | AC2: cena | AD2: min | AE2: max | AG2: min | AH2: max | AI2: cena | AJ2: obsługa | AK2: 800
A3: PV + Inwerter hybrydowy + Magazyn Energii | B3: STANDARD | C3: 8000 | D3: Trina Vertex TSM-450 | E3: 0.45 | F3: 240 | G3: Dach skośny - blachodachówka,papa, gont pion | H3: 110 | I3: 0,45 - 1 | J3: Deye LOW VOLTAGE SUN-3.6K-SG03LP1-EU (1-faz) | K3: 3 | L3: 3 | M3: 3.65 | N3: 6244 | O3: Deye SUN 3kW - 1F | P3: 3 | Q3: 3 | R3: 3.75 | S3: 1320 | U3: BRAK | V3: 0 | W3: 0 | X3: 0 | Y3: 5.5 | Z3: 1800 | AA3: 0 | AB3: 7 | AC3: 2000 | AG3: 0 | AH3: 3.99 | AI3: 550 | AJ3: Transport | AK3: 500
A4: ME | B4: RABAT | C4: 6000 | G4: Dach skośny - dachówka ceramiczna, betonowa pion | H4: 170 | I4: 0,9 - 2 | J4: Deye LOW VOLTAGE SUN-5K-SG04LP3-EU | K4: 5 | L4: 3.66 | M4: 5.5 | N4: 6244 | O4: Deye SUN 4kW - 3F | P4: 4 | Q4: 3.76 | R4: 4.75 | S4: 2795 | T4: Sofar Hybrydowy | U4: Deye PRO-B 5,12 kWh | V4: 5.12 | W4: 3871 | X4: 5.51 | Y4: 10 | Z4: 2000 | AA4: 7.01 | AB4: 10 | AC4: 2200 | AG4: 4 | AH4: 10 | AI4: 550 | AJ4: Skarbonka | AK4: 500
B5: MENAGO | C5: 4000 | G5: Dach skośny - blachodach trapezowy - mostek pion | H5: 80 | I5: 1,35 - 3 | J5: Deye LOW VOLTAGE SUN-6K-SG04LP3-EU | K5: 6 | L5: 5.51 | M5: 7 | N5: 6244 | O5: Deye SUN 5kW - 3F | P5: 5 | Q5: 4.76 | R5: 5.75 | S5: 3030 | T5: Sofar Hybrydowy | U5: Deye PRO-B 10,24 kWh | V5: 10.24 | W5: =$W$4*(ROW()-3) -> 7742 | X5: 10.01 | Y5: 15.5 | Z5: 2700 | AA5: 10.01 | AB5: 15 | AC5: 2500 | AD5: 1 | AE5: 999 | AF5: 25 | AG5: 10.01 | AH5: 20 | AI5: 500 | AJ5: optymalizatory | AK5: 135
G6: Dach skośny - dachówka karpiówka pion | H6: 110 | I6: 1,8 - 4 | J6: Deye LOW VOLTAGE SUN-8K-SG04LP3-EU | K6: 8 | L6: 7.01 | M6: 9 | N6: 6470 | O6: Deye SUN 6kW - 3F | P6: 6 | Q6: 5.76 | R6: 7 | S6: 3150 | T6: Sofar Hybrydowy | U6: Deye PRO-B 15,36 kWh | V6: 15.36 | W6: =$W$4*(ROW()-3) -> 11613 | X6: 15.51 | Y6: 20 | Z6: 3600 | AA6: 15.01 | AB6: 25 | AC6: 3000 | AD6: stała stawka | AF6: 250 | AG6: 20.01 | AH6: 40 | AI6: 450 | AJ6: Dodatkowy kabel | AK6: 25
G7: Dach skośny - blachodach na rąbek pion | H7: 110 | I7: 2,25 - 5 | J7: Deye LOW VOLTAGE SUN-10K-SG04LP3-EU | K7: 10 | L7: 9.01 | M7: 12.3 | N7: 6720 | O7: Deye SUN 8kW - 3F | P7: 8 | Q7: 7.01 | R7: 9 | S7: 3270 | T7: Sofar Hybrydowy | U7: Deye PRO-B 20,48 kWh | V7: 20.48 | W7: 15484 | X7: 20.01 | Y7: 30 | Z7: 5800 | AA7: 25.01 | AB7: 35 | AC7: 3800 | AG7: 40.01 | AH7: 50 | AI7: 400 | AJ7: Magazyn Ciepła | AK7: 2500
G8: Dach płaski - inwazyjny ekierka pion 15 | H8: 240 | I8: 2,7 - 6 | J8: Deye LOW VOLTAGE SUN-12K-SG04LP3-EU | K8: 12 | L8: =M7+0.01 -> 12.31 | M8: 14.5 | N8: 6790 | O8: Deye SUN 11kW - 3F | P8: 10 | Q8: 9.01 | R8: 11 | S8: 3440 | T8: DYNESS | U8: DYNESS 4,8 kWh | V8: 4.8 | W8: 3414 | X8: 30.01 | Y8: 40 | Z8: 7200 | AA8: 35.01 | AB8: 45 | AC8: 4000 | AJ8: Wakacje | AK8: 600
G9: Dach płaski bezinwazyjnie - balast pion 15 | H9: 270 | I9: 3,15 - 7 | J9: Deye LOW VOLTAGE SUN-15K-SG04LP3-EU | K9: 15 | L9: =M8+0.01 -> 14.51 | M9: 16.99 | N9: 7890 | O9: Deye SUN 12kW - 3F | P9: 12 | Q9: 11.01 | R9: 13.5 | S9: 3670 | U9: DYNESS 7,2 kWh | V9: 7.2 | W9: 5121 | X9: 40.01 | Y9: 50 | Z9: 8200 | AA9: 45.01 | AB9: 50 | AC9: 4500 | AJ9: Zwyżka | AK9: 650
G10: Instalacja gruntowa - panele montowane pionowo (bez przekopu) | H10: 250 | I10: 3,6 - 8 | J10: Deye LOW VOLTAGE SUN-20K-SG04LP3-EU | K10: 20 | L10: 17 | M10: 22 | N10: 9997 | O10: Deye SUN 15kW - 3F | P10: 15 | Q10: 13.51 | R10: 16 | S10: 4290 | U10: DYNESS 9,6 kWh | V10: 9.6 | W10: 6828 | AJ10: Integrator do istniejącej instalacji PV | AK10: 2000
I11: 4,05 - 9 | O11: Deye SUN 17kW - 3F | P11: 17 | Q11: 16.01 | R11: 18 | S11: 4560 | U11: DYNESS 12 kWh | V11: 12 | W11: 8535 | AJ11: Moduł bilansowania energii Eniga | AK11: 2200
I12: 4,5 - 10 | O12: Deye SUN 20kW - 3F | P12: 20 | Q12: 18.01 | R12: 21 | S12: 5150 | U12: DYNESS 14,4 kWh | V12: 14.4 | W12: 10242 | AJ12: Modernizacja rozdzielni elektrycznej | AK12: 1200
I13: 4,95 - 11 | O13: Deye SUN 22kW - 3F | P13: 22 | Q13: 21.01 | R13: 23 | S13: 5340 | AJ13: Zarządzanie energią | AK13: 2000
I14: 5,4 - 12 | O14: Deye SUN 25kW - 3F | P14: 25 | Q14: 23.01 | R14: 27.5 | S14: 5790
I15: 5,85 - 13 | O15: Deye SUN 30kW - 3F | P15: 30 | Q15: 27.51 | R15: 31.5 | S15: 6350 | AJ15: Ppoż | AK15: 800
I16: 6,3 - 14 | O16: Deye SUN 33kW - 3F | P16: 33 | Q16: 31.51 | R16: 34.5 | S16: 7090 | AJ16: Montaż ME | AK16: 500
I17: 6,75 - 15 | O17: Deye SUN 36kW - 3F | P17: 36 | Q17: 34.51 | R17: 37.5 | S17: 7590 | AJ17: Wyłącznik PPoż | AK17: 1200
I18: 7,2 - 16 | O18: Deye SUN 40kW - 3F | P18: 40 | Q18: 37.51 | R18: 42.5 | S18: 7490
I19: 7,65 - 17 | O19: Deye SUN 45kW - 3F | P19: 45 | Q19: 42.51 | R19: 47.5 | S19: 6392 | AJ19: Rozszerzenie gwarancji do 10 lat - falownik 1 fazowy | AK19: 340
I20: 8,1 - 18 | O20: Deye SUN 50kW - 3F | P20: 50 | Q20: 47.51 | R20: 50 | S20: 8450 | AJ20: Rozszerzenie gwarancji do 10 lat - falownik 3 fazowy | AK20: 580
I21: 8,55 - 19
I22: 9 - 20 | AJ22: UPS | AK22: 1800
I23: 9,45 - 21 | U23: Deye PRO-B 5,12 kWh
I24: 9,9 - 22 | U24: DYNESS 7,2 kWh
I25: 10,35 - 23 | U25: DYNESS 9,6 kWh
I26: 10,8 - 24 | U26: DYNESS 12 kWh
I27: 11,25 - 25 | U27: DYNESS 14,4 kWh
I28: 11,7 - 26 | U28: Deye PRO-B 15,36 kWh
I29: 12,15 - 27 | U29: Deye PRO-B 20,48 kWh
I30: 12,6 - 28
I31: 13,05 - 29
I32: 13,5 - 30
I33: 13,95 - 31
I34: 14,4 - 32
I35: 14,85 - 33
I36: 15,3 - 34
I37: 15,75 - 35
I38: 16,2 - 36
I39: 16,65 - 37
I40: 17,1 - 38
I41: 17,55 - 39
I42: 18 - 40
I43: 18,45 - 41
I44: 18,9 - 42
I45: 19,35 - 43
I46: 19,8 - 44
I47: 20,25 - 45
I48: 20,7 - 46
I49: 21,15 - 47
I50: 21,6 - 48
I51: 22,05 - 49
I52: 22,5 - 50
I53: 22,95 - 51
I54: 23,4 - 52
I55: 23,85 - 53
I56: 24,3 - 54
I57: 24,75 - 55
I58: 25,2 - 56
I59: 25,65 - 57
I60: 26,1 - 58
I61: 26,55 - 59
I62: 27 - 60
I63: 27,45 - 61
I64: 27,9 - 62
I65: 28,35 - 63
I66: 28,8 - 64
I67: 29,25 - 65
I68: 29,7 - 66
I69: 30,15 - 67
I70: 30,6 - 68
I71: 31,05 - 69
I72: 31,5 - 70
I73: 31,95 - 71
I74: 32,4 - 72
I75: 32,85 - 73
I76: 33,3 - 74
I77: 33,75 - 75
I78: 34,2 - 76
I79: 34,65 - 77
I80: 35,1 - 78
I81: 35,55 - 79
I82: 36 - 80
I83: 36,45 - 81
I84: 36,9 - 82
I85: 37,35 - 83
I86: 37,8 - 84
I87: 38,25 - 85
I88: 38,7 - 86
I89: 39,15 - 87
I90: 39,6 - 88
I91: 40,05 - 89
I92: 40,5 - 90
I93: 40,95 - 91
I94: 41,4 - 92
I95: 41,85 - 93
I96: 42,3 - 94
I97: 42,75 - 95
I98: 43,2 - 96
I99: 43,65 - 97
I100: 44,1 - 98
I101: 44,55 - 99
I102: 45 - 100
I103: 45,45 - 101
I104: 45,9 - 102
I105: 46,35 - 103
I106: 46,8 - 104
I107: 47,25 - 105
I108: 47,7 - 106
I109: 48,15 - 107
I110: 48,6 - 108
I111: 49,05 - 109
I112: 49,5 - 110
I113: 49,95 - 111
I114: 112
I115: 113
I116: 114
I117: 115
I118: 116
I119: 117
I120: 118
I121: 119
I122: 120
I123: 121
I124: 122
I125: 123
I126: 124
I127: 125
I128: 126
I129: 127
I130: 128
I131: 129
I132: 130
I133: 131
I134: 132
I135: 133
I136: 134
I137: 135
I138: 136
I139: 137
I140: 138
I141: 139
I142: 140
I143: 141
I144: 142
I145: 143
I146: 144
I147: 145
I148: 146
I149: 147
I150: 148
I151: 149
I152: 150
I153: 151
I154: 152
I155: 153
I156: 154
I157: 155
I158: 156
I159: 157
I160: 158
I161: 159
I162: 160
I163: 161
I164: 162
I165: 163
I166: 164
I167: 165
I168: 166

Sheet Inwerter (hidden)
D1: =_xlfn.UNIQUE(Baza!J2:J1000) -> Falownik | E1: =_xlfn.UNIQUE(Baza!O2:O1000) -> Falownik | M1: Ilość faz | N1: Falownik | O1: Moc
D2: Deye LOW VOLTAGE SUN-3.6K-SG03LP1-EU (1-faz) | E2: Deye SUN 3kW - 1F | G2: =IF(Kalkulator!D12=Baza!A3,Obliczenia!D2,"?") -> Deye LOW VOLTAGE SUN-3.6K-SG03LP1-EU (1-faz) | H2: =IFERROR(IF(G2=D2,_xlfn.UNIQUE(D2),IF(G2=D3,_xlfn.UNIQUE(D3:D9),IF(G2=D4,_xlfn.UNIQUE(D4:D9),IF(G2=D5,_xlfn.UNIQUE(D5:D9),IF(G2=D6,_xlfn.UNIQUE(D6:D9),IF(G2=D7,_xlfn.UNIQUE(D7:D9),IF(G2=D8,_xlfn.UNIQUE(D8:D9),IF(G2=D9,_xlfn.UNIQUE(D9),IF(G2=E2,_xlfn.UNIQUE(E2:E19),IF(G2=E3,_xlfn.UNIQUE(E3:E19),IF(G2=E4,_xlfn.UNIQUE(E4:E19),IF(G2=E5,_xlfn.UNIQUE(E5:E19),IF(G2=E6,_xlfn.UNIQUE(E6:E19),IF(G2=E7,_xlfn.UNIQUE(E7:E19),IF(G2=E8,_xlfn.UNIQUE(E8:E19),IF(G2=E9,_xlfn.UNIQUE(E9:E19),IF(G2=E10,_xlfn.UNIQUE(E10:E19),IF(G2=E11,_xlfn.UNIQUE(E11:E19),IF(G2=E12,_xlfn.UNIQUE(E12:E19),IF(G2=E13,_xlfn.UNIQUE(E13:E19),IF(G2=E14,_xlfn.UNIQUE(E14:E19),IF(G2=E15,_xlfn.UNIQUE(E15:E19),IF(G2=E16,_xlfn.UNIQUE(E16:E19),IF(G2=E17,_xlfn.UNIQUE(E17:E19),IF(G2=E18,_xlfn.UNIQUE(E18:E19),IF(G2=E19,_xlfn.UNIQUE(E19),IF(G2="?",_xlfn.UNIQUE(D2:D9),""))))))))))))))))))))))))))),"") -> Deye LOW VOLTAGE SUN-3.6K-SG03LP1-EU (1-faz) | M2: 1 | N2: Deye LOW VOLTAGE SUN-3.6K-SG03LP1-EU (1-faz) | O2: 3,15 - 7 | Q2: =Kalkulator!D15 -> 1 | R2: =IF($Q$2=Inwerter!$M$2,_xlfn.UNIQUE(Inwerter!$O$3),_xlfn.UNIQUE($O$2:$O$39)) -> 3,6 - 8 | U2: =Kalkulator!E17 -> 3,6 - 8 | V2: =IF(AND(Kalkulator!E17=Inwerter!O2,Kalkulator!D15=Inwerter!M2),_xlfn.UNIQUE(Inwerter!N2),IF(AND(Kalkulator!E17=Inwerter!O3,Kalkulator!D15=Inwerter!M2),_xlfn.UNIQUE(Inwerter!N2),IF(AND(Kalkulator!E17=Inwerter!O2,Kalkulator!D15=Inwerter!M3),_xlfn.UNIQUE(Inwerter!N3:N9),IF(AND(Kalkulator!E17=Inwerter!O3,Kalkulator!D15=Inwerter!M3),_xlfn.UNIQUE(Inwerter!N3:N9),IF(AND(Kalkulator!E17<>Inwerter!O2,Kalkulator!E17<>Inwerter!O3),_xlfn.UNIQUE(Inwerter!N3:N9),"?"))))) -> Deye LOW VOLTAGE SUN-3.6K-SG03LP1-EU (1-faz)
D3: Deye LOW VOLTAGE SUN-5K-SG04LP3-EU | E3: Deye SUN 4kW - 3F | M3: 3 | N3: Deye LOW VOLTAGE SUN-5K-SG04LP3-EU | O3: 3,6 - 8
D4: Deye LOW VOLTAGE SUN-6K-SG04LP3-EU | E4: Deye SUN 5kW - 3F | N4: Deye LOW VOLTAGE SUN-6K-SG04LP3-EU | O4: 4,05 - 9
D5: Deye LOW VOLTAGE SUN-8K-SG04LP3-EU | E5: Deye SUN 6kW - 3F | N5: Deye LOW VOLTAGE SUN-8K-SG04LP3-EU | O5: 4,5 - 10
D6: Deye LOW VOLTAGE SUN-10K-SG04LP3-EU | E6: Deye SUN 8kW - 3F | N6: Deye LOW VOLTAGE SUN-10K-SG04LP3-EU | O6: 4,95 - 11
D7: Deye LOW VOLTAGE SUN-12K-SG04LP3-EU | E7: Deye SUN 11kW - 3F | N7: Deye LOW VOLTAGE SUN-12K-SG04LP3-EU | O7: 5,4 - 12
D8: Deye LOW VOLTAGE SUN-15K-SG04LP3-EU | E8: Deye SUN 12kW - 3F | N8: Deye LOW VOLTAGE SUN-15K-SG04LP3-EU | O8: 5,85 - 13
D9: Deye LOW VOLTAGE SUN-20K-SG04LP3-EU | E9: Deye SUN 15kW - 3F | N9: Deye LOW VOLTAGE SUN-20K-SG04LP3-EU | O9: 6,3 - 14
D10: 0 | E10: Deye SUN 17kW - 3F | O10: 6,75 - 15
E11: Deye SUN 20kW - 3F | O11: 7,2 - 16
E12: Deye SUN 22kW - 3F | O12: 7,65 - 17
E13: Deye SUN 25kW - 3F | O13: 8,1 - 18
E14: Deye SUN 30kW - 3F | K14: =IF(AND(Kalkulator!$D$12=Baza!$A$4,Kalkulator!$D$19=Baza!$J$3),Obliczenia!$H$5,IF(AND(Kalkulator!$D$12=Baza!$A$4,Kalkulator!$D$19<>Baza!$J$3),Obliczenia!$H$6,IF(AND(Kalkulator!$D$12=Baza!$A$3,Obliczenia!$D$1=3.6),Obliczenia!$H$5:$H$6,Obliczenia!$H$6))) -> 1 | O14: 8,55 - 19
E15: Deye SUN 33kW - 3F | K15: 3 | O15: 9 - 20
E16: Deye SUN 36kW - 3F | O16: 9,45 - 21
E17: Deye SUN 40kW - 3F | O17: 9,9 - 22
E18: Deye SUN 45kW - 3F | O18: 10,35 - 23
E19: Deye SUN 50kW - 3F | O19: 10,8 - 24
E20: 0 | O20: 11,25 - 25
O21: 11,7 - 26
O22: 12,15 - 27
O23: 12,6 - 28
O24: 13,05 - 29
O25: 13,5 - 30
O26: 13,95 - 31
O27: 14,4 - 32
O28: 14,85 - 33
O29: 15,3 - 34
O30: 15,75 - 35
O31: 16,2 - 36
O32: 16,65 - 37
O33: 17,1 - 38
O34: 17,55 - 39
O35: 18 - 40
O36: 18,45 - 41
O37: 18,9 - 42
O38: 19,35 - 43
O39: 19,8 - 44

Sheet Mój Prąd (hidden)
E1: =_xlfn.UNIQUE(Baza!U:W) -> Magazyn energii | F1: 0 | G1: 0 | I1: 50% CENY, MAX. DO 16 TYS | N1: PV | O1: 50% CENY, MAX. DO 7 TYS
A2: koszt pod dotacje ME | B2: =VLOOKUP(Kalkulator!G18,'Mój Prąd'!H4:J12,2,FALSE) -> 30720 | E2: nazwa | F2: pojemność [kWh] | G2: cena | I2: koszt pod dotację | J2: max. dotacja | N2: max. koszt pod dotację | O2: max. dotacja
A3: max. dotacja ME | B3: =IF(Informator!D11<'Mój Prąd'!B2,Informator!D11/2,VLOOKUP(Kalkulator!G18,'Mój Prąd'!H4:J12,3,FALSE)) -> 15360 | E3: BRAK | F3: 0 | G3: 0 | N3: 14000 | O3: 7000
A4: pozostała cena brutto dla pv | B4: =Informator!D11-'Mój Prąd'!B2 -> 15904.464 | E4: Deye PRO-B 5,12 kWh | F4: 5.12 | G4: 3871 | H4: =F4&" kwp" -> 5,12 kwp | I4: =F4*6000 -> 30720 | J4: =I4/2 -> 15360
A5: max. dotacja PV | B5: =IF(B4>N3,O3,B4/2) -> 7000 | E5: Deye PRO-B 10,24 kWh | F5: 10.24 | G5: 7742 | H5: =F5&" kwp" -> 10,24 kwp | I5: 32000 | J5: =I5/2 -> 16000
A6: ŁĄCZNA KWOTA DOTACJI | B6: =B3+B5 -> 22360 | E6: Deye PRO-B 15,36 kWh | F6: 15.36 | G6: 11613 | H6: 15,36 kwp | I6: 32000 | J6: 16000
E7: Deye PRO-B 20,48 kWh | F7: 20.48 | G7: 15484 | H7: 20,48 kwp | I7: 32000 | J7: 16000
E8: DYNESS 4,8 kWh | F8: 4.8 | G8: 3414 | H8: 4,8 kwp | I8: =F8*6000 -> 28800 | J8: =I8/2 -> 14400
E9: DYNESS 7,2 kWh | F9: 7.2 | G9: 5121 | H9: 7,2 kwp | I9: 32000 | J9: 16000
E10: DYNESS 9,6 kWh | F10: 9.6 | G10: 6828 | H10: 9,6 kwp | I10: 32000 | J10: 16000
E11: DYNESS 12 kWh | F11: 12 | G11: 8535 | H11: 12 kwp | I11: 32000 | J11: 16000
E12: DYNESS 14,4 kWh | F12: 14.4 | G12: 10242 | H12: 14,4 kwp | I12: 32000 | J12: 16000
E13: 0 | F13: 0 | G13: 0 | H13: 0 kwp
E14: Deye PRO-B 5,12 kWh | F14: 0 | G14: 0 | H14: 0 kwp
E15: DYNESS 7,2 kWh | F15: 0 | G15: 0 | H15: 0 kwp
E16: DYNESS 9,6 kWh | F16: 0 | G16: 0 | H16: 0 kwp
E17: DYNESS 12 kWh | F17: 0 | G17: 0 | H17: 0 kwp
E18: DYNESS 14,4 kWh | F18: 0 | G18: 0 | H18: 0 kwp
E19: Deye PRO-B 15,36 kWh | F19: 0 | G19: 0 | H19: 0 kwp
E20: Deye PRO-B 20,48 kWh | F20: 0 | G20: 0 | H20: 0 kwp

Sheet Obliczenia (hidden)
B1: Cena jednostkowa | C1: Cena dla instalacji | D1: =RIGHT(Kalkulator!$E$17,3)*(VLOOKUP(Kalkulator!$D$17,Baza!$D:$F,2,0)) -> 3.6 | E1: =_xlfn.CONCAT($D$1," kwp") -> 3,6 kwp | H1: NIE
A2: Rodzaj instalacji | B2: =Kalkulator!$D$12 -> PV + Inwerter hybrydowy + Magazyn Energii | C2: =SUM(D28,C31,C33) -> 43170.8 | D2: =IF(C5>1,D5,D6) -> Deye LOW VOLTAGE SUN-3.6K-SG03LP1-EU (1-faz) | H2: TAK
A3: Konstrukcja montażowa | B3: =_xlfn.IFS(Kalkulator!D12=Baza!A4,0,Kalkulator!$D$17=Baza!$D$3,VLOOKUP(Kalkulator!$D$14,Baza!$G$3:$H$13,2,0)) -> 110 | C3: =$B$3*RIGHT(Kalkulator!$E$17,3) -> 880 | H3: Klient indywidualny | I3: =IF($H$3=Kalkulator!$C$10,Obliczenia!$C$2*1.08,"") -> 46624.464 | K3: =IFERROR(IF(AND($B$2=Baza!A2,Kalkulator!$D$19=VLOOKUP(Kalkulator!$D$19,Baza!O:S,1,0)),1,0),0) -> 0
A4: Moduły | B4: =IF(Kalkulator!D12=Baza!A4,0,VLOOKUP(Kalkulator!$D$17,Baza!$D:$F,3,0)) -> 240 | C4: =$B$4*RIGHT(Kalkulator!$E$17,3) -> 1920 | H4: Klient biznesowy | I4: =IF($H$4=Kalkulator!$C$10,Obliczenia!$C$2*1.23,"") -> 
A5: Inwerter sieciowy | B5: =_xlfn.IFS(AND(Obliczenia!$D$1<=Baza!$R$3),Baza!$S$3,AND(Obliczenia!$D$1<=Baza!$R$4),Baza!$S$4,AND(Obliczenia!$D$1<=Baza!$R$5),Baza!$S$5,Obliczenia!$D$1<=Baza!$R$7,Baza!$S$7,AND(Obliczenia!$D$1<=Baza!$R$6),Baza!$S$6,Obliczenia!$D$1<=Baza!$R$8,Baza!$S$8,Obliczenia!$D$1<=Baza!$R$9,Baza!$S$9,Obliczenia!$D$1<=Baza!$R$10,Baza!$S$10,Obliczenia!$D$1<=Baza!$R$11,Baza!$S$11,Obliczenia!$D$1<=Baza!$R$12,Baza!$S$12,Obliczenia!$D$1<=Baza!$R$13,Baza!$S$13,Obliczenia!$D$1<=Baza!$R$14,Baza!$S$14,Obliczenia!$D$1<=Baza!$R$15,Baza!$S$15,Obliczenia!$D$1<=Baza!$R$16,Baza!$S$16,Obliczenia!$D$1<=Baza!$R$17,Baza!$S$17,Obliczenia!$D$1<=Baza!$R$18,Baza!$S$18,Obliczenia!$D$1<=Baza!$R$19,Baza!$S$19,Obliczenia!$D$1<=Baza!$R$20,Baza!$S$20) -> 1320 | C5: =IFERROR(IF(Baza!A2=Kalkulator!D12,B5,0),0) -> 0 | D5: =_xlfn.IFS(AND(Obliczenia!$D$1<=Baza!$R$3,Obliczenia!N5=Obliczenia!H5),Baza!$O$3,AND(Obliczenia!$D$1<=Baza!$R$3,Obliczenia!N5=Obliczenia!H6),Baza!$O$4,AND(Obliczenia!$D$1<=Baza!$R$4),Baza!$O$4,AND(Obliczenia!$D$1<=Baza!$R$5),Baza!$O$5,Obliczenia!$D$1<=Baza!$R$7,Baza!$O$7,AND(Obliczenia!$D$1<=Baza!$R$6),Baza!$O$6,Obliczenia!$D$1<=Baza!$R$8,Baza!$O$8,Obliczenia!$D$1<=Baza!$R$9,Baza!$O$9,Obliczenia!$D$1<=Baza!$R$10,Baza!$O$10,Obliczenia!$D$1<=Baza!$R$11,Baza!$O$11,Obliczenia!$D$1<=Baza!$R$12,Baza!$O$12,Obliczenia!$D$1<=Baza!$R$13,Baza!$O$13,Obliczenia!$D$1<=Baza!$R$14,Baza!$O$14,Obliczenia!$D$1<=Baza!$R$15,Baza!$O$15,Obliczenia!$D$1<=Baza!$R$16,Baza!$O$16,Obliczenia!$D$1<=Baza!$R$17,Baza!$O$17,Obliczenia!$D$1<=Baza!$R$18,Baza!$O$18,Obliczenia!$D$1<=Baza!$R$19,Baza!$O$19,Obliczenia!$D$1<=Baza!$R$20,Baza!$O$20) -> Deye SUN 3kW - 1F | H5: 1 | K5: =IF(AND($B$2=Baza!A3,Kalkulator!$D$19=VLOOKUP(Kalkulator!$D$19,Baza!J:N,1,0)),1,0) -> 1 | L5: =IF(AND($B$2=Baza!A4,Kalkulator!$D$19=VLOOKUP(Kalkulator!$D$19,Baza!J:N,1,0)),1,0) -> 0 | N5: =Kalkulator!$D$15 -> 1
A6: Inwerter hybrydowy | B6: =_xlfn.IFS(AND(Obliczenia!$D$1<=Baza!$M$3),Baza!$N$3,Obliczenia!$D$1<=Baza!$M$4,Baza!$N$4,Obliczenia!$D$1<=Baza!$M$5,Baza!$N$5,Obliczenia!$D$1<=Baza!$M$6,Baza!$N$6,Obliczenia!$D$1<=Baza!$M$7,Baza!$N$7,Obliczenia!$D$1<=Baza!$M$8,Baza!$N$8,Obliczenia!$D$1<=Baza!$M$9,Baza!$N$9,Obliczenia!$D$1<=Baza!$M$10,Baza!$N$10,Obliczenia!$D$1<=Baza!$M$11,Baza!$N$11,Obliczenia!$D$1<=Baza!$M$12,Baza!$N$12) -> 6244 | C6: =IFERROR(_xlfn.IFS(B2=Baza!A4,B6,SEARCH("hybrydowy",$B$2)>0,B6),0) -> 6244 | D6: =_xlfn.IFS(AND(Obliczenia!$D$1=3.6,Kalkulator!$D$15=1),Baza!$J$3,Obliczenia!$D$1<=Baza!$M$4,Baza!$J$4,Obliczenia!$D$1<=Baza!$M$5,Baza!$J$5,Obliczenia!$D$1<=Baza!$M$6,Baza!$J$6,Obliczenia!$D$1<=Baza!$M$7,Baza!$J$7,Obliczenia!$D$1<=Baza!$M$8,Baza!$J$8,Obliczenia!$D$1<=Baza!$M$9,Baza!$J$9,Obliczenia!$D$1<=Baza!$M$10,Baza!$J$10,Obliczenia!$D$1<=Baza!$M$11,Baza!$J$11,Obliczenia!$D$1<=Baza!$M$12,Baza!$J$12) -> Deye LOW VOLTAGE SUN-3.6K-SG03LP1-EU (1-faz) | E6: =IFERROR(IFERROR(_xlfn.IFS($D$5=Kalkulator!$D$19,Obliczenia!$C$5,#REF!=Kalkulator!$D$19,Obliczenia!$C$6),VLOOKUP(Kalkulator!$D$19,Baza!$O$3:$S$21,5,0)),VLOOKUP(Kalkulator!$D$19,Baza!J3:N12,5,0)) -> 6244 | H6: 3 | K6: =IFERROR(SUM(K4:K5,L5),0) -> 1
A7: Optymalizatory | B7: =Kalkulator!$D$22*Baza!AK5 -> 0 | C7: =B7 -> 0
A8: Przekop | B8: =IF(Kalkulator!$D$24>0,(Kalkulator!$D$24*Baza!$AF$5)+Baza!$AF$6,0) -> 0 | C8: =B8 -> 0
A9: Dodatkowy kabel | B9: =Kalkulator!$D$25*Baza!$AK$6 -> 0 | C9: 0
A10: Elektryka | B10: =_xlfn.IFS(Obliczenia!$D$1<=Baza!$Y$3,Baza!$Z$3,Obliczenia!$D$1<=Baza!$Y$4,Baza!$Z$4,Obliczenia!$D$1<=Baza!$Y$5,Baza!$Z$5,Obliczenia!$D$1<=Baza!$Y$6,Baza!$Z$6,Obliczenia!$D$1<=Baza!$Y$7,Baza!$Z$7,Obliczenia!$D$1<=Baza!$Y$8,Baza!$Z$8,Obliczenia!$D$1<=Baza!$Y$9,Baza!$Z$9) -> 1800 | C10: =IF(B2=Baza!A4,1000,B10) -> 1800
A11: Zapas/drobnica | B11: =_xlfn.IFS(Obliczenia!$D$1<=Baza!$AB$3,Baza!$AC$3,Obliczenia!$D$1<=Baza!$AB$4,Baza!$AC$4,Obliczenia!$D$1<=Baza!$AB$5,Baza!$AC$5,Obliczenia!$D$1<=Baza!$AB$6,Baza!$AC$6,Obliczenia!$D$1<=Baza!$AB$7,Baza!$AC$7,Obliczenia!$D$1<=Baza!$AB$8,Baza!$AC$8,Obliczenia!$D$1<=Baza!$AB$9,Baza!$AC$9) -> 2000 | C11: =IF($B$2=Baza!$A$4,0,B11) -> 2000
A13: Eco Wakacje | B13: =IF(Kalkulator!D29=Obliczenia!$H$2,Baza!AK8,0) -> 0 | C13: 0
A14: Zwyżka | B14: =IF(Kalkulator!D30=Obliczenia!$H$2,Baza!AK9,0) -> 0 | C14: 0
A15: Integrator do istniejącej instalacji PV | B15: =IF(Kalkulator!D31=Obliczenia!H2,_xlfn.IFS(Kalkulator!D12=Baza!A2,Baza!AK10,Kalkulator!D12=Baza!A3,0,Kalkulator!D12=Baza!A4,0),0) -> 0 | C15: 0
A16: Moduł bilansowania energii Eniga | B16: =IF(Kalkulator!D26=Obliczenia!$H$2,Baza!AK11,0) -> 0 | C16: =IF(Kalkulator!$D$12<>Baza!$A$2,Obliczenia!B16,0) -> 0
A17: Wyłącznik PPoż | B17: =IF(Kalkulator!D21=Obliczenia!$H$2,Baza!AK17,0) -> 0 | C17: =IF(D1>=6.5,B17,0) -> 0
A18: Modernizacja rozdzielni elektrycznej | B18: =IF(Kalkulator!D28=Obliczenia!H2,_xlfn.IFS(Kalkulator!D12=Baza!A2,0,Kalkulator!D12=Baza!A3,Baza!AK12,Kalkulator!D12=Baza!A4,Baza!AK12),0) -> 0 | C18: =B18 -> 0
A19: Rozszerzenie gwarancji do 10 lat - falownik 1 fazowy | B19: =IF(Kalkulator!D23=Obliczenia!$H$2,_xlfn.IFS(Kalkulator!$D$19=Baza!$O$3,Baza!$AK$19,Kalkulator!$D$19=Baza!$J$3,Baza!$AK$19,Kalkulator!$D$15=Obliczenia!$H$6,Baza!AK20),0) -> 0 | C19: =IF($B$2=Baza!$A$4,0,B19) -> 0
A20: Montaż | B20: =_xlfn.IFS(Obliczenia!$D$1<=Baza!$AH$3,$D$1*Baza!$AI$3,Obliczenia!$D$1<=Baza!$AH$4,$D$1*Baza!$AI$4,Obliczenia!$D$1<=Baza!$AH$5,$D$1*Baza!$AI$5,Obliczenia!$D$1<=Baza!$AH$6,$D$1*Baza!$AI$6,Obliczenia!$D$1<=Baza!$AH$7,$D$1*Baza!$AI$7) -> 1980 | C20: =IF($B$2=Baza!$A$4,1500,B20) -> 1980
A21: Transport | B21: =VLOOKUP(A21,Baza!$AJ:$AK,2,0) -> 500 | C21: =B21 -> 500
A22: Montaż ME | B22: =VLOOKUP(A22,Baza!$AJ:$AK,2,0) -> 500 | C22: =IFERROR(IF(SEARCH("magazyn",$B$2)>0,B22,0),0) -> 500
A23: Ppoż | B23: =VLOOKUP(A23,Baza!$AJ:$AK,2,0) -> 800 | C23: =IF($D$1>=6.5,B23,0) -> 0 | D23: =Kalkulator!$D$18 -> Deye PRO-B 5,12 kWh
A24: Magazyn Energii | B24: =VLOOKUP($D$23,Baza!$U$3:$W$20,3,0) -> 3871 | C24: =IFERROR(_xlfn.IFS(B2=Baza!A3,Obliczenia!B24,B2=Baza!A4,Obliczenia!B24),0) -> 3871 | D24: =IFERROR(IF(OR(B2=Baza!A3,B2=Baza!A4),VLOOKUP(Kalkulator!$D$18,Baza!$U:$W,2,0),0),0) -> 5.12 | E24: =IF($D$24<>0,_xlfn.CONCAT($D$24," kwp"),"") -> 5,12 kwp | F24: =_xlfn.IFS(C24=Baza!W4,"2,5",C24=Baza!W5,"5",C24=Baza!W6,"7,5",C24=Baza!W7,"10",C24=Baza!W8,"4,8",C24=Baza!W9,"3,6",C24=Baza!W10,"4,8",C24=Baza!W11,"6",C24=Baza!W12,"7,2") -> 2,5 | G24: =IFERROR(_xlfn.CONCAT($F$24," kw"),"") -> 2,5 kw
A26: UPS | B26: =IF(Kalkulator!D27=Obliczenia!H2,_xlfn.IFS(Kalkulator!D12=Baza!A2,0,Kalkulator!D12=Baza!A3,Baza!AK22,Kalkulator!D12=Baza!A4,Baza!AK22),0) -> 0 | C26: =B26 -> 0
A27: Marża EcoRun | B27: =_xlfn.IFS(Marże!A1=Marże!L1,VLOOKUP(Marże!K1,Marże!A:B,2,0),Marże!L1=Marże!D1,VLOOKUP(Marże!K1,Marże!D:E,2,0),Marże!L1=Marże!G1,VLOOKUP(Marże!K1,Marże!G:H,2,0)) -> 3475.8 | C27: =IF(Kalkulator!D12=Baza!A4,2500+Marże!L4,Obliczenia!B27) -> 3475.8
A28: Marża SupremeEnergy | B28: =Marże!AB4 -> 10000 | C28: =_xlfn.IFS(Kalkulator!D18=Baza!U23,Obliczenia!B28,Kalkulator!D18=Baza!U24,Obliczenia!B28+1000,Kalkulator!D18=Baza!U25,Obliczenia!B28+2000,Kalkulator!D18=Baza!U26,Obliczenia!B28+3000,Kalkulator!D18=Baza!U27,Obliczenia!B28+4000,Kalkulator!D18=Baza!U28,Obliczenia!B28+5000,Kalkulator!D18=Baza!U29,Obliczenia!B28+6000) -> 10000 | D28: =_xlfn.IFS(K3=1,SUM(C3:C4,C7:C28,E6),K6=1,SUM(C3:C4,C7:C28,E6)) -> 33170.8
A31: Pakiet | B31: =_xlfn.IFS(Kalkulator!D32=Baza!B2,Baza!C2,Kalkulator!D32=Baza!B3,Baza!C3,Kalkulator!D32=Baza!B4,Baza!C4,Kalkulator!D32=Baza!B5,Baza!C5) -> 10000 | C31: =B31 -> 10000
A33: Narzut dodany przez handlowca: | B33: =Kalkulator!$D$37 -> 0 | C33: =IFERROR(_xlfn.IFS(AND($B$31=Baza!$C$2,Kalkulator!$D$17<>Baza!$D$4,Obliczenia!$D$1<=20),Obliczenia!$B$33,AND($B$31=Baza!$C$2,Kalkulator!$D$17=Baza!$D$4,Obliczenia!$D$1<=10),Obliczenia!$B$33,AND($B$31=Baza!$C$4,Kalkulator!$D$17<>Baza!$D$4,Obliczenia!$D$1>20),Obliczenia!$B$33,AND($B$31=Baza!$C$4,Kalkulator!$D$17=Baza!$D$4,Obliczenia!$D$1>10),Obliczenia!$B$33),0) -> 0 | D33: =IF(Kalkulator!D32=Baza!B2,"TAK","NIE") -> TAK

Sheet Marże (hidden)
A1: PV Mikro | D1: PV + Inwerter hybrydowy | G1: PV + Inwerter hybrydowy + Magazyn Energii | I1: ME | K1: =Obliczenia!D1 -> 3.6 | L1: =Kalkulator!D12 -> PV + Inwerter hybrydowy + Magazyn Energii | M1: =Kalkulator!D18 -> Deye PRO-B 5,12 kWh | O1: PV Mikro | R1: PV + Inwerter hybrydowy | U1: PV + Inwerter hybrydowy + Magazyn Energii | X1: ME
A2: Marża ER | D2: Marża ER | G2: Marża ER | I2: Marża ER | O2: Marża PRO | R2: Marża PRO | U2: Marża PRO | X2: Marża PRO
A3: 3.15 | B3: 4000 | D3: 3.15 | E3: 5310.48 | G3: 3.15 | H3: 3049.28 | I3: Deye PRO-B 5,12 kWh | J3: 3500 | O3: 3.15 | P3: 2835 | R3: 3.15 | S3: 2835 | U3: 3.15 | V3: 10000 | X3: 4.8 | Y3: 8000
A4: 3.6 | B4: 4500 | D4: 3.6 | E4: 6006.52 | G4: 3.6 | H4: 3475.8 | I4: DYNESS 7,2 kWh | J4: 4500 | L4: =_xlfn.IFS(L1=A1,VLOOKUP(K1,A:B,2,0),L1=D1,VLOOKUP(K1,D:E,2,0),L1=G1,VLOOKUP(K1,G:H,2,0),L1=I1,VLOOKUP(M1,I:J,2,0)) -> 3475.8 | O4: 3.6 | P4: 3240 | R4: 3.6 | S4: 3240 | U4: 3.6 | V4: 10000 | X4: 7.2 | Y4: 9000 | AA4: =Obliczenia!D24 -> 5.12 | AB4: =IFERROR(_xlfn.IFS(L1=O1,VLOOKUP(K1,O:P,2,0),L1=R1,VLOOKUP(K1,R:S,2,0),L1=U1,VLOOKUP(K1,U:V,2,0)),VLOOKUP(AA4,Marże!X:Y,2,0)) -> 10000
A5: 4.05 | B5: 5000 | D5: 4.05 | E5: 4479.45 | G5: 4.05 | H5: 4536.09 | I5: DYNESS 9,6 kWh | J5: 4500 | O5: 4.05 | P5: 3645 | R5: 4.05 | S5: 3645 | U5: 4.05 | V5: 10000 | X5: 9.6 | Y5: 10000
A6: 4.5 | B6: 5000 | D6: 4.5 | E6: 4625.7 | G6: 4.5 | H6: 4749.6 | I6: DYNESS 12 kWh | J6: 6500 | O6: 4.5 | P6: 3600 | R6: 4.5 | S6: 3600 | U6: 4.5 | V6: 10000 | X6: 12 | Y6: 11000
A7: 4.95 | B7: 6000 | D7: 4.95 | E7: 4931.02 | G7: 4.95 | H7: 4866.6 | I7: DYNESS 14,4 kWh | J7: 6500 | O7: 4.95 | P7: 3960 | R7: 4.95 | S7: 3960 | U7: 4.95 | V7: 11000 | X7: 14.4 | Y7: 12000 | AA7: =IF(AA4=X4,1,0) -> 0
A8: 5.4 | B8: 6000 | D8: 5.4 | E8: 5082.14 | G8: 5.4 | H8: 5398.9 | I8: Deye PRO-B 15,36 kWh | J8: 7500 | O8: 5.4 | P8: 4320 | R8: 5.4 | S8: 4320 | U8: 5.4 | V8: 11000 | X8: 5.12 | Y8: 8000
A9: 5.85 | B9: 6000 | D9: 5.85 | E9: 5636.9 | G9: 5.85 | H9: 5577.65 | I9: Deye PRO-B 20,48 kWh | J9: 7500 | O9: 5.85 | P9: 4680 | R9: 5.85 | S9: 4680 | U9: 5.85 | V9: 11000 | X9: 10.24 | Y9: 10000
A10: 6.3 | B10: 6000 | D10: 6.3 | E10: 6149.15 | G10: 6.3 | H10: 5923.8 | O10: 6.3 | P10: 5040 | R10: 6.3 | S10: 5040 | U10: 6.3 | V10: 11000 | X10: 15.36 | Y10: 12000
A11: 6.75 | B11: 6000 | D11: 6.75 | E11: 6599.78 | G11: 6.75 | H11: 6503.7 | O11: 6.75 | P11: 5400 | R11: 6.75 | S11: 5400 | U11: 6.75 | V11: 12000 | X11: 20.48 | Y11: 14000
A12: 7.2 | B12: 6000 | D12: 7.2 | E12: 6919.5 | G12: 7.2 | H12: 6397.37 | O12: 7.2 | P12: 5760 | R12: 7.2 | S12: 5760 | U12: 7.2 | V12: 12000
A13: 7.65 | B13: 6000 | D13: 7.65 | E13: 7090.13 | G13: 7.65 | H13: 6526.55 | O13: 7.65 | P13: 6120 | R13: 7.65 | S13: 6120 | U13: 7.65 | V13: 12000
A14: 8.1 | B14: 8000 | D14: 8.1 | E14: 7260.75 | G14: 8.1 | H14: 6655.74 | O14: 8.1 | P14: 6480 | R14: 8.1 | S14: 6480 | U14: 8.1 | V14: 13000
A15: 8.55 | B15: 8000 | D15: 8.55 | E15: 7431.38 | G15: 8.55 | H15: 6784.93 | O15: 8.55 | P15: 6840 | R15: 8.55 | S15: 6840 | U15: 8.55 | V15: 13000
A16: 9 | B16: 8000 | D16: 9 | E16: 7602 | G16: 9 | H16: 6914.12 | O16: 9 | P16: 7200 | R16: 9 | S16: 7200 | U16: 9 | V16: 13000
A17: 9.45 | B17: 8000 | D17: 9.45 | E17: 7860.13 | G17: 9.45 | H17: 7109.55 | O17: 9.45 | P17: 7560 | R17: 9.45 | S17: 7560 | U17: 9.45 | V17: 13000
A18: 9.9 | B18: 10000 | D18: 9.9 | E18: 8030.75 | G18: 9.9 | H18: 7238.74 | O18: 9.9 | P18: 6930 | R18: 9.9 | S18: 7920 | U18: 9.9 | V18: 13000
A19: 10.35 | B19: 10000 | D19: 10.35 | E19: 9566 | G19: 10.35 | H19: 9617.24 | O19: 10.35 | P19: 7245 | R19: 10.35 | S19: 7245 | U19: 10.35 | V19: 14000
A20: 10.8 | B20: 10000 | D20: 10.8 | E20: 9752 | G20: 10.8 | H20: 9775.34 | O20: 10.8 | P20: 7560 | R20: 10.8 | S20: 7560 | U20: 10.8 | V20: 14000
A21: 11.25 | B21: 10000 | D21: 11.25 | E21: 9938 | G21: 11.25 | H21: 9933.44 | O21: 11.25 | P21: 7875 | R21: 11.25 | S21: 7875 | U21: 11.25 | V21: 14000
A22: 11.7 | B22: 10000 | D22: 11.7 | E22: 10124 | G22: 11.7 | H22: 10091.54 | O22: 11.7 | P22: 8190 | R22: 11.7 | S22: 8190 | U22: 11.7 | V22: 14000
A23: 12.15 | B23: 10000 | D23: 12.15 | E23: 10310 | G23: 12.15 | H23: 10249.64 | O23: 12.15 | P23: 8505 | R23: 12.15 | S23: 8505 | U23: 12.15 | V23: 14000
A24: 12.6 | B24: 12000 | D24: 12.6 | E24: 10524 | G24: 12.6 | H24: 10431.54 | O24: 12.6 | P24: 8820 | R24: 12.6 | S24: 8820 | U24: 12.6 | V24: 14000
A25: 13.05 | B25: 12000 | D25: 13.05 | E25: 12048.75 | G25: 13.05 | H25: 10589.64 | O25: 13.05 | P25: 9135 | R25: 13.05 | S25: 9135 | U25: 13.05 | V25: 14000
A26: 13.5 | B26: 12000 | D26: 13.5 | E26: 12258 | G26: 13.5 | H26: 10747.74 | O26: 13.5 | P26: 9450 | R26: 13.5 | S26: 9450 | U26: 13.5 | V26: 14000
A27: 13.95 | B27: 12000 | D27: 13.95 | E27: 12467.25 | G27: 13.95 | H27: 10905.84 | O27: 13.95 | P27: 9765 | R27: 13.95 | S27: 9765 | U27: 13.95 | V27: 14000
A28: 14.4 | B28: 12000 | D28: 14.4 | E28: 12676.5 | G28: 14.4 | H28: 11063.94 | O28: 14.4 | P28: 10080 | R28: 14.4 | S28: 10080 | U28: 14.4 | V28: 14000
A29: 14.85 | B29: 12000 | D29: 14.85 | E29: 13380.75 | G29: 14.85 | H29: 11596.04 | O29: 14.85 | P29: 10395 | R29: 14.85 | S29: 10395 | U29: 14.85 | V29: 14000
A30: 15.3 | B30: 15000 | D30: 15.3 | E30: 13815 | G30: 15.3 | H30: 11924.14 | O30: 15.3 | P30: 10710 | R30: 15.3 | S30: 10710 | U30: 15.3 | V30: 14000
A31: 15.75 | B31: 15000 | D31: 15.75 | E31: 14429.25 | G31: 15.75 | H31: 12388.24 | O31: 15.75 | P31: 11025 | R31: 15.75 | S31: 11025 | U31: 15.75 | V31: 14000
A32: 16.2 | B32: 15000 | D32: 16.2 | E32: 14638.5 | G32: 16.2 | H32: 12546.34 | O32: 16.2 | P32: 11340 | R32: 16.2 | S32: 11340 | U32: 16.2 | V32: 14000
A33: 16.65 | B33: 15000 | D33: 16.65 | E33: 14847.75 | G33: 16.65 | H33: 12704.44 | O33: 16.65 | P33: 11655 | R33: 16.65 | S33: 11655 | U33: 16.65 | V33: 14000
A34: 17.1 | B34: 15000 | D34: 17.1 | E34: 16005.15 | G34: 17.1 | H34: 13578.92 | O34: 17.1 | P34: 11970 | R34: 17.1 | S34: 11970 | U34: 17.1 | V34: 14000
A35: 17.55 | B35: 15000 | D35: 17.55 | E35: 16214.4 | G35: 17.55 | H35: 13737.02 | O35: 17.55 | P35: 12285 | R35: 17.55 | S35: 12285 | U35: 17.55 | V35: 14000
A36: 18 | B36: 15000 | D36: 18 | E36: 16423.65 | G36: 18 | H36: 13895.12 | O36: 18 | P36: 12600 | R36: 18 | S36: 12600 | U36: 18 | V36: 14000
A37: 18.45 | B37: 15000 | D37: 18.45 | E37: 16632.9 | G37: 18.45 | H37: 14053.22 | O37: 18.45 | P37: 12915 | R37: 18.45 | S37: 12915 | U37: 18.45 | V37: 14000
A38: 18.9 | B38: 15000 | D38: 18.9 | E38: 16842.15 | G38: 18.9 | H38: 14211.32 | O38: 18.9 | P38: 11340 | R38: 18.9 | S38: 13230 | U38: 18.9 | V38: 14000
A39: 19.35 | B39: 15000 | D39: 19.35 | E39: 17051.4 | G39: 19.35 | H39: 14369.42 | O39: 19.35 | P39: 11610 | R39: 19.35 | S39: 13545 | U39: 19.35 | V39: 14000
A40: 19.8 | B40: 15000 | D40: 19.8 | E40: 17260.65 | G40: 19.8 | H40: 14527.52 | O40: 19.8 | P40: 11880 | R40: 19.8 | S40: 13860 | U40: 19.8 | V40: 14000
A41: 20.25 | B41: 15000 | O41: 20.25 | P41: 12150
A42: 20.7 | B42: 15000 | O42: 20.7 | P42: 12420
A43: 21.15 | B43: 15000 | O43: 21.15 | P43: 12690
A44: 21.6 | B44: 15000 | O44: 21.6 | P44: 12960
A45: 22.05 | B45: 15000 | O45: 22.05 | P45: 13230
A46: 22.5 | B46: 15000 | O46: 22.5 | P46: 13500
A47: 22.95 | B47: 15000 | O47: 22.95 | P47: 13770
A48: 23.4 | B48: 15000 | O48: 23.4 | P48: 14040
A49: 23.85 | B49: 15000 | O49: 23.85 | P49: 14310
A50: 24.3 | B50: 15000 | O50: 24.3 | P50: 14580
A51: 24.75 | B51: 15000 | O51: 24.75 | P51: 14850
A52: 25.2 | B52: 17000 | O52: 25.2 | P52: 15120
A53: 25.65 | B53: 17000 | O53: 25.65 | P53: 15390
A54: 26.1 | B54: 17000 | O54: 26.1 | P54: 15660
A55: 26.55 | B55: 17000 | O55: 26.55 | P55: 15930
A56: 27 | B56: 17000 | O56: 27 | P56: 16200
A57: 27.45 | B57: 17000 | O57: 27.45 | P57: 16470
A58: 27.9 | B58: 17000 | O58: 27.9 | P58: 13950
A59: 28.35 | B59: 17000 | O59: 28.35 | P59: 14175
A60: 28.8 | B60: 17000 | O60: 28.8 | P60: 14400
A61: 29.25 | B61: 17000 | O61: 29.25 | P61: 14625
A62: 29.7 | B62: 17000 | O62: 29.7 | P62: 14850
A63: 30.15 | B63: 19000 | O63: 30.15 | P63: 15075
A64: 30.6 | B64: 19000 | O64: 30.6 | P64: 15300
A65: 31.05 | B65: 19000 | O65: 31.05 | P65: 15525
A66: 31.5 | B66: 19000 | O66: 31.5 | P66: 15750
A67: 31.95 | B67: 19000 | O67: 31.95 | P67: 15975
A68: 32.4 | B68: 19000 | O68: 32.4 | P68: 16200
A69: 32.85 | B69: 19000 | O69: 32.85 | P69: 16425
A70: 33.3 | B70: 19000 | O70: 33.3 | P70: 16650
A71: 33.75 | B71: 19000 | O71: 33.75 | P71: 16875
A72: 34.2 | B72: 19000 | O72: 34.2 | P72: 17100
A73: 34.65 | B73: 19000 | O73: 34.65 | P73: 17325
A74: 35.1 | B74: 19000 | O74: 35.1 | P74: 17550
A75: 35.55 | B75: 19000 | O75: 35.55 | P75: 17775
A76: 36 | B76: 19000 | O76: 36 | P76: 18000
A77: 36.45 | B77: 19000 | O77: 36.45 | P77: 18225
A78: 36.9 | B78: 19000 | O78: 36.9 | P78: 14760
A79: 37.35 | B79: 19000 | O79: 37.35 | P79: 14940
A80: 37.8 | B80: 19000 | O80: 37.8 | P80: 15120
A81: 38.25 | B81: 19000 | O81: 38.25 | P81: 15300
A82: 38.7 | B82: 19000 | O82: 38.7 | P82: 15480
A83: 39.15 | B83: 19000 | O83: 39.15 | P83: 15660
A84: 39.6 | B84: 19000 | O84: 39.6 | P84: 15840
A85: 40.05 | B85: 25000 | O85: 40.05 | P85: 16020
A86: 40.5 | B86: 25000 | O86: 40.5 | P86: 16200
A87: 40.95 | B87: 25000 | O87: 40.95 | P87: 16380
A88: 41.4 | B88: 25000 | O88: 41.4 | P88: 16560
A89: 41.85 | B89: 25000 | O89: 41.85 | P89: 16740
A90: 42.3 | B90: 25000 | O90: 42.3 | P90: 16920
A91: 42.75 | B91: 25000 | O91: 42.75 | P91: 17100
A92: 43.2 | B92: 25000 | O92: 43.2 | P92: 17280
A93: 43.65 | B93: 25000 | O93: 43.65 | P93: 17460
A94: 44.1 | B94: 25000 | O94: 44.1 | P94: 17640
A95: 44.55 | B95: 25000 | O95: 44.55 | P95: 17820
A96: 45 | B96: 25000 | O96: 45 | P96: 18000
A97: 45.45 | B97: 25000 | O97: 45.45 | P97: 18180
A98: 45.9 | B98: 25000 | O98: 45.9 | P98: 18360
A99: 46.35 | B99: 25000 | O99: 46.35 | P99: 18540
A100: 46.8 | B100: 25000 | O100: 46.8 | P100: 18720
A101: 47.25 | B101: 25000 | O101: 47.25 | P101: 18900
A102: 47.7 | B102: 25000 | O102: 47.7 | P102: 19080
A103: 48.15 | B103: 25000 | O103: 48.15 | P103: 19260
A104: 48.6 | B104: 25000 | O104: 48.6 | P104: 19440
A105: 49.05 | B105: 25000 | O105: 49.05 | P105: 19620
A106: 49.5 | B106: 25000 | O106: 49.5 | P106: 19800
A107: 49.95 | B107: 25000 | O107: 49.95 | P107: 19980
